fUSD/lending_fUSD_20250904
["ID","MTS","AMOUNT","RATE_DAILY","PERIOD"]
[383497663,1756959039836,-1000.0,0.00022364,2]
[383497664,1756959039845,-400.0,0.00022364,2]
[383497665,1756959039855,-400.0,0.00022364,2]
[383497666,1756959039864,-402.33431239,0.00022364,2]
[383497667,1756959039874,-400.0,0.00022364,2]
[383497668,1756959039884,-400.0,0.00022364,2]
[383497669,1756959039893,-400.0,0.00022364,2]
[383497670,1756959039903,-403.78185408,0.00022364,2]
[383497671,1756959039913,-400.0,0.00022364,2]
[383497672,1756959039922,-400.0,0.00022364,2]
[383497673,1756959039932,-402.98955488,0.00022364,2]
[383497674,1756959039941,-402.98473465,0.00022364,2]
[383497675,1756959039951,-400.0,0.00022364,2]
[383497676,1756959039960,-400.0,0.00022364,2]
[383497678,1756959039969,-400.0,0.00022364,2]
[383497680,1756959039979,-400.0,0.00022364,2]
[383497682,1756959039988,-400.0,0.00022364,2]
[383497683,1756959039997,-401.89815603,0.00022364,2]
[383497684,1756959040007,-400.0,0.00022364,2]
[383497685,1756959040016,-543.37556772,0.00022364,2]
[383497686,1756959040026,-632.22,0.00022364,2]
[383497687,1756959040035,-400.0,0.00022364,2]
[383497688,1756959040044,-400.0,0.00022364,2]
[383497689,1756959040053,-400.0,0.00022364,2]
[383497690,1756959040063,-400.0,0.00022364,2]
[383497691,1756959040073,-400.0,0.00022364,2]
[383497692,1756959040082,-1520.76,0.00022364,2]
[383497693,1756959040091,-400.0,0.00022364,2]
[383497694,1756959040101,-400.0,0.00022364,2]
[383497695,1756959040110,-400.0,0.00022364,2]
[383497696,1756959040119,-400.0,0.00022364,2]
[383497697,1756959040128,-410.3705028,0.00022364,2]
[383497698,1756959040138,-400.0,0.00022364,2]
[383497699,1756959040147,-402.56560581,0.00022364,2]
[383497700,1756959040156,-400.0,0.00022364,2]
[383497701,1756959040165,-482.36292409,0.00022364,2]
[383497702,1756959040175,-403.94666167,0.00022364,2]
[383497703,1756959040184,-400.0,0.00022364,2]
[383497704,1756959040194,-400.92094567,0.00022364,2]
[383497705,1756959040204,-400.0,0.00022364,2]
[383497706,1756959040213,-445.81,0.00022364,2]
[383497707,1756959040222,-400.0,0.00022364,2]
[383497708,1756959040232,-400.0,0.00022364,2]
[383497709,1756959040242,-402.3576064,0.00022364,2]
[383497710,1756959040252,-400.0,0.00022364,2]
[383497711,1756959040262,-2500.0,0.00022365,2]
[383497712,1756959040272,-2500.0,0.00022365,2]
[383497713,1756959040281,-400.0,0.00022465,2]
[383497714,1756959040291,-400.0,0.00022465,2]
[383497715,1756959040300,-400.0,0.00022465,2]
[383497716,1756959040309,-400.0,0.00022465,2]
[383497717,1756959040319,-406.7086965,0.00022465,2]
[383497718,1756959040328,-400.0,0.00022465,2]
[383497719,1756959040338,-400.0,0.00022465,2]
[383497720,1756959040347,-400.0,0.00022465,2]
[383497721,1756959040358,-434.47,0.00022465,2]
[383497722,1756959040375,-400.0,0.00022465,2]
[383497723,1756959040384,-400.0,0.00022465,2]
[383497724,1756959040394,-400.0,0.00022465,2]
[383497725,1756959040404,-400.0,0.00022465,2]
[383497726,1756959040414,-404.85757316,0.00022465,2]
[383497727,1756959040424,-465.47,0.00022465,2]
[383497728,1756959040434,-401.75536945,0.00022465,2]
[383497729,1756959040446,-400.0,0.00022465,2]
[383497730,1756959040457,-400.0,0.00022465,2]
[383497731,1756959040468,-400.0,0.00022465,2]
[383497732,1756959040477,-400.0,0.00022465,2]
[383497733,1756959040487,-400.0,0.00022465,2]
[383497734,1756959040497,-456.5,0.00022465,2]
[383497735,1756959040506,-400.0,0.00022465,2]
[383497736,1756959040515,-400.0,0.00022465,2]
[383497737,1756959040524,-400.0,0.00022465,2]
[383497738,1756959040534,-400.0,0.00022465,2]
[383497739,1756959040544,-400.0,0.00022465,2]
[383497740,1756959040553,-400.0,0.00022465,2]
[383497741,1756959040563,-2931.7,0.00022465,2]
[383497742,1756959040572,-400.0,0.00022465,2]
[383497743,1756959040582,-150.0,0.000225,2]
[383497744,1756959040591,-400.0,0.00022638,2]
[383497745,1756959040601,-411.86284957,0.00022638,2]
[383497746,1756959040610,-400.0,0.00022638,2]
[383497747,1756959040619,-400.0,0.00022638,2]
[383497748,1756959040639,-422.05,0.00022638,2]
[383497749,1756959040954,-400.0,0.00022638,2]
[383497750,1756959040985,-400.0,0.00022638,2]
[383497751,1756959040995,-400.0,0.00022638,2]
[383497752,1756959041004,-400.0,0.00022638,2]
[383497753,1756959041014,-400.0,0.00022638,2]
[383497754,1756959041024,-400.0,0.00022638,2]
[383497755,1756959041033,-400.0,0.00022638,2]
[383497756,1756959041043,-400.0,0.00022638,2]
[383497757,1756959041052,-400.0,0.00022638,2]
[383497758,1756959041063,-400.0,0.00022638,2]
[383497759,1756959041072,-400.0,0.00022638,2]
[383497760,1756959041082,-400.0,0.00022638,2]
[383497761,1756959041091,-403.60377507,0.00022638,2]
[383497762,1756959041101,-400.0,0.00022638,2]
[383497763,1756959041111,-1000.0,0.00022638,2]
[383497764,1756959041121,-400.0,0.00022638,2]
[383497765,1756959041130,-400.0,0.00022638,2]
[383497766,1756959041140,-400.0,0.00022638,2]
[383497767,1756959041150,-400.0,0.00022638,2]
[383497768,1756959041159,-274.77295376,0.00022638,2]
[383497769,1756959041168,-241.93706407,0.00022638,2]
[383497770,1756959041178,-400.0,0.00022638,2]
[383497771,1756959041187,-405.30567719,0.00022638,2]
[383497772,1756959041197,-400.0,0.00022638,2]
[383497773,1756959041206,-400.0,0.00022638,2]
[383497774,1756959041215,-400.0,0.00022638,2]
[383497775,1756959041224,-400.0,0.00022638,2]
[383497776,1756959041234,-632.22,0.00022638,2]
[383497777,1756959041244,-400.0,0.00022638,2]
[383497778,1756959041253,-400.0,0.00022638,2]
[383497779,1756959041263,-400.0,0.00022638,2]
[383497780,1756959041272,-400.0,0.00022638,2]
[383497781,1756959041282,-400.0,0.00022638,2]
[383497782,1756959041291,-1520.76,0.00022638,2]
[383497783,1756959041301,-400.0,0.00022638,2]
[383497784,1756959041311,-400.0,0.00022638,2]
[383497785,1756959041320,-400.0,0.00022638,2]
[383497786,1756959041329,-400.0,0.00022638,2]
[383497787,1756959041342,-400.0,0.00022638,2]
[383497788,1756959041351,-400.0,0.00022638,2]
[383497789,1756959041361,-445.81,0.00022638,2]
[383497790,1756959041371,-400.0,0.00022638,2]
[383497791,1756959041382,-400.0,0.00022638,2]
[383497792,1756959041391,-400.0,0.00022638,2]
[383497793,1756959041400,-400.0,0.00022739,2]
[383497794,1756959041410,-400.0,0.00022739,2]
[383497795,1756959041422,-400.0,0.00022739,2]
[383497796,1756959041433,-400.0,0.00022739,2]
[383497797,1756959041442,-400.0,0.00022739,2]
[383497798,1756959041451,-400.0,0.00022739,2]
[383497799,1756959041460,-400.0,0.00022739,2]
[383497800,1756959041469,-434.47,0.00022739,2]
[383497801,1756959041479,-341.96185189,0.00022739,2]
[383497802,1756959041488,-400.0,0.00022739,2]
[383497803,1756959041497,-400.0,0.00022739,2]
[383497804,1756959041507,-400.0,0.00022739,2]
[383497805,1756959041516,-465.47,0.00022739,2]
[383497806,1756959041525,-400.0,0.00022739,2]
[383497807,1756959041535,-400.0,0.00022739,2]
[383497808,1756959041545,-400.0,0.00022739,2]
[383497809,1756959041554,-400.0,0.00022739,2]
[383497810,1756959041563,-400.0,0.00022739,2]
[383497811,1756959041574,-456.5,0.00022739,2]
[383497812,1756959041583,-400.0,0.00022739,2]
[383497813,1756959041592,-400.0,0.00022739,2]
[383497814,1756959041602,-400.0,0.00022739,2]
[383497815,1756959041612,-400.0,0.00022739,2]
[383497816,1756959041621,-400.0,0.00022739,2]
[383497817,1756959041631,-400.0,0.00022739,2]
[383497818,1756959041641,-2931.7,0.00022739,2]
[383497819,1756959041650,-509.69116507,0.00022739,2]
[383497820,1756959041659,-400.0,0.00022912,2]
[383497821,1756959041668,-416.37320134,0.00022912,2]
[383497822,1756959041677,-400.0,0.00022912,2]
[383497823,1756959041686,-422.05,0.00022912,2]
[383497824,1756959041695,-400.0,0.00022912,2]
[383497825,1756959041704,-400.0,0.00022912,2]
[383497826,1756959041714,-400.0,0.00022912,2]
[383497827,1756959041723,-408.06363208,0.00022912,2]
[383497828,1756959041732,-400.0,0.00022912,2]
[383497829,1756959041742,-400.0,0.00022912,2]
[383497830,1756959041752,-400.0,0.00022912,2]
[383497831,1756959041761,-400.0,0.00022912,2]
[383497832,1756959041770,-400.0,0.00022912,2]
[383497833,1756959041780,-400.0,0.00022912,2]
[383497834,1756959041790,-400.0,0.00022912,2]
[383497835,1756959041799,-400.0,0.00022912,2]
[383497836,1756959041810,-1024.28783979,0.00022912,2]
[383497837,1756959041820,-400.0,0.00022912,2]
[383497838,1756959041830,-400.0,0.00022912,2]
[383497839,1756959041840,-437.74550224,0.00022912,2]
[383497840,1756959041851,-400.0,0.00022912,2]
[383497841,1756959041860,-400.0,0.00022912,2]
[383497842,1756959041870,-400.0,0.00022912,2]
[383497843,1756959041880,-400.0,0.00022912,2]
[383497844,1756959041889,-400.0,0.00022912,2]
[383497845,1756959041900,-400.0,0.00022912,2]
[383497846,1756959041910,-632.22,0.00022912,2]
[383497847,1756959041921,-400.0,0.00022912,2]
[383497848,1756959041931,-400.0,0.00022912,2]
[383497849,1756959041940,-400.0,0.00022912,2]
[383497850,1756959041949,-400.0,0.00022912,2]
[383497851,1756959041959,-400.0,0.00022912,2]
[383497852,1756959041968,-1520.76,0.00022912,2]
[383497853,1756959041978,-400.0,0.00022912,2]
[383497854,1756959041987,-400.0,0.00022912,2]
[383497855,1756959041996,-400.0,0.00022912,2]
[383497856,1756959042006,-400.0,0.00022912,2]
[383497857,1756959042015,-400.0,0.00022912,2]
[383497858,1756959042025,-464.14628003,0.00022912,2]
[383497859,1756959042034,-445.81,0.00022912,2]
[383497860,1756959042043,-400.0,0.00022912,2]
[383497861,1756959042053,-400.0,0.00022912,2]
[383497862,1756959042062,-400.0,0.00022912,2]
[383497863,1756959042072,-7770.9252,0.00022913,2]
[383497864,1756959042081,-179.61,0.00022965,2]
[383497865,1756959042091,-2351.0,0.00023008,2]
[383497866,1756959042101,-756.47818405,0.00023013,2]
[383497867,1756959042110,-400.0,0.00023013,2]
[383497868,1756959042120,-400.0,0.00023013,2]
[383497869,1756959042129,-400.0,0.00023013,2]
[383497870,1756959042138,-400.0,0.00023013,2]
[383497871,1756959042147,-400.0,0.00023013,2]
[383497872,1756959042158,-400.0,0.00023013,2]
[383497873,1756959042167,-434.47,0.00023013,2]
[383497874,1756959042176,-400.0,0.00023013,2]
[383497875,1756959042186,-400.0,0.00023013,2]
[383497876,1756959042195,-400.0,0.00023013,2]
[383497878,1756959042206,-465.47,0.00023013,2]
[383497880,1756959042215,-400.0,0.00023013,2]
[383497882,1756959042225,-400.0,0.00023013,2]
[383497884,1756959042234,-400.0,0.00023013,2]
[383497886,1756959042243,-400.0,0.00023013,2]
[383497888,1756959042253,-400.0,0.00023013,2]
[383497889,1756959042262,-456.5,0.00023013,2]
[383497890,1756959042272,-400.0,0.00023013,2]
[383497891,1756959042282,-400.0,0.00023013,2]
[383497892,1756959042292,-400.0,0.00023013,2]
[383497893,1756959042301,-400.0,0.00023013,2]
[383497894,1756959042311,-400.0,0.00023013,2]
[383497895,1756959042321,-400.0,0.00023013,2]
[383497896,1756959042330,-2931.7,0.00023013,2]
[383497898,1756959042339,-400.0,0.00023186,2]
[383497899,1756959042351,-400.0,0.00023186,2]
[383497900,1756959042360,-422.05,0.00023186,2]
[383497901,1756959042370,-400.0,0.00023186,2]
[383497902,1756959042380,-400.0,0.00023186,2]
[383497903,1756959042389,-400.0,0.00023186,2]
[383497904,1756959042399,-400.0,0.00023186,2]
[383497905,1756959042410,-414.72201379,0.00023186,2]
[383497906,1756959042419,-410.43862862,0.00023186,2]
[383497907,1756959042430,-400.0,0.00023186,2]
[383497908,1756959042439,-400.0,0.00023186,2]
[383497909,1756959042448,-400.0,0.00023186,2]
[383497910,1756959042458,-400.0,0.00023186,2]
[383497911,1756959042467,-400.0,0.00023186,2]
[383497912,1756959042481,-400.0,0.00023186,2]
[383497913,1756959042491,-400.0,0.00023186,2]
[383497914,1756959042501,-400.0,0.00023186,2]
[383497915,1756959042511,-482.41539303,0.00023186,2]
[383497916,1756959042520,-400.0,0.00023186,2]
[383497917,1756959042530,-400.0,0.00023186,2]
[383497918,1756959042540,-400.0,0.00023186,2]
[383497919,1756959042549,-400.0,0.00023186,2]
[383497920,1756959042560,-632.22,0.00023186,2]
[383497921,1756959042571,-400.0,0.00023186,2]
[383497922,1756959042581,-400.0,0.00023186,2]
[383497923,1756959042591,-400.0,0.00023186,2]
[383497924,1756959042603,-400.0,0.00023186,2]
[383497925,1756959042612,-419.85217499,0.00023186,2]
[383497926,1756959042622,-1520.76,0.00023186,2]
[383497927,1756959042632,-400.0,0.00023186,2]
[383497928,1756959042641,-239.72691137,0.00023186,2]
[383497929,1756959042651,-400.0,0.00023186,2]
[383497930,1756959042660,-400.0,0.00023186,2]
[383497931,1756959042670,-400.0,0.00023186,2]
[383497932,1756959042680,-445.81,0.00023186,2]
[383497933,1756959042690,-400.0,0.00023186,2]
[383497934,1756959042700,-400.0,0.00023186,2]
[383497935,1756959042709,-400.0,0.00023186,2]
[383497936,1756959042718,-591.63,0.00023213,2]
[383497937,1756959042727,-400.0,0.00023287,2]
[383497938,1756959042737,-385.00440054,0.00023287,2]
[383497939,1756959042746,-400.0,0.00023287,2]
[383497940,1756959042756,-400.0,0.00023287,2]
[383497941,1756959042765,-400.0,0.00023287,2]
[383497942,1756959042774,-400.0,0.00023287,2]
[383497943,1756959042784,-434.47,0.00023287,2]
[383497944,1756959042793,-285.61771365,0.00023287,2]
[383497945,1756959042802,-400.0,0.00023287,2]
[383497946,1756959042811,-400.0,0.00023287,2]
[383497947,1756959042821,-465.47,0.00023287,2]
[383497948,1756959042831,-400.0,0.00023287,2]
[383497949,1756959042840,-400.0,0.00023287,2]
[383497950,1756959042851,-400.0,0.00023287,2]
[383497951,1756959042860,-400.0,0.00023287,2]
[383497952,1756959042872,-400.0,0.00023287,2]
[383497953,1756959042881,-456.5,0.00023287,2]
[383497954,1756959042891,-400.0,0.00023287,2]
[383497955,1756959042901,-400.0,0.00023287,2]
[383497956,1756959042910,-400.0,0.00023287,2]
[383497957,1756959042920,-400.0,0.00023287,2]
[383497958,1756959042929,-400.0,0.00023287,2]
[383497959,1756959042939,-401.31904219,0.00023287,2]
[383497960,1756959042948,-2931.7,0.00023287,2]
[383497961,1756959042958,-400.0,0.0002346,2]
[383497962,1756959042969,-400.0,0.0002346,2]
[383497963,1756959042978,-422.05,0.0002346,2]
[383497965,1756959042988,-400.0,0.0002346,2]
[383497967,1756959042997,-400.0,0.0002346,2]
[383497969,1756959043007,-400.0,0.0002346,2]
[383497971,1756959043017,-400.0,0.0002346,2]
[383497973,1756959043026,-400.0,0.0002346,2]
[383497975,1756959043036,-400.0,0.0002346,2]
[383497977,1756959043046,-400.0,0.0002346,2]
[383497979,1756959043057,-400.0,0.0002346,2]
[383497982,1756959043066,-400.0,0.0002346,2]
[383497984,1756959043075,-400.0,0.0002346,2]
[383497986,1756959043084,-400.0,0.0002346,2]
[383497988,1756959043094,-400.0,0.0002346,2]
[383497990,1756959043103,-291.52695672,0.0002346,2]
[383497992,1756959043112,-400.0,0.0002346,2]
[383497994,1756959043122,-400.0,0.0002346,2]
[383497996,1756959043131,-400.0,0.0002346,2]
[383497998,1756959043141,-632.22,0.0002346,2]
[383498000,1756959043151,-400.0,0.0002346,2]
[383498002,1756959043160,-400.0,0.0002346,2]
[383498004,1756959043170,-400.0,0.0002346,2]
[383498006,1756959043181,-239.87213481,0.0002346,2]
[383498008,1756959043190,-1520.76,0.0002346,2]
[383498010,1756959043200,-400.0,0.0002346,2]
[383498012,1756959043209,-400.0,0.0002346,2]
[383498014,1756959043219,-400.0,0.0002346,2]
[383498016,1756959043228,-445.81,0.0002346,2]
[383498018,1756959043238,-400.0,0.0002346,2]
[383498020,1756959043248,-400.0,0.0002346,2]
[383498022,1756959043257,-400.0,0.0002346,2]
[383498024,1756959043267,-400.0,0.00023561,2]
[383498026,1756959043276,-400.0,0.00023561,2]
[383498028,1756959043286,-400.0,0.00023561,2]
[383498030,1756959043295,-400.0,0.00023561,2]
[383498032,1756959043304,-400.0,0.00023561,2]
[383498033,1756959043313,-434.47,0.00023561,2]
[383498036,1756959043323,-400.0,0.00023561,2]
[383498038,1756959043333,-400.0,0.00023561,2]
[383498056,1756959043513,-465.47,0.00023561,2]
[383498058,1756959043523,-400.0,0.00023561,2]
[383498060,1756959043532,-400.0,0.00023561,2]
[383498062,1756959043542,-400.0,0.00023561,2]
[383498064,1756959043551,-400.0,0.00023561,2]
[383498066,1756959043560,-400.0,0.00023561,2]
[383498068,1756959043569,-456.5,0.00023561,2]
[383498070,1756959043578,-400.0,0.00023561,2]
[383498072,1756959043587,-400.0,0.00023561,2]
[383498074,1756959043596,-400.0,0.00023561,2]
[383498076,1756959043605,-400.0,0.00023561,2]
[383498078,1756959043614,-400.0,0.00023561,2]
[383498080,1756959043623,-2931.7,0.00023561,2]
[383498082,1756959043632,-1175.0,0.00023586,2]
[383498084,1756959043641,-6163.0,0.00023586,2]
[383498086,1756959043651,-4163.0,0.00023586,2]
[383498088,1756959043660,-21149.0,0.00023586,2]
[383498090,1756959043669,-724.0,0.00023586,2]
[383498092,1756959043679,-1000.0,0.00023726,2]
[383498093,1756959043689,-400.0,0.00023734,2]
[383498094,1756959043698,-400.0,0.00023734,2]
[383498095,1756959043707,-422.05,0.00023734,2]
[383498096,1756959043716,-400.0,0.00023734,2]
[383498097,1756959043727,-400.0,0.00023734,2]
[383498098,1756959043736,-400.0,0.00023734,2]
[383498099,1756959043745,-400.0,0.00023734,2]
[383498100,1756959043755,-400.0,0.00023734,2]
[383498101,1756959043764,-400.0,0.00023734,2]
[383498102,1756959043773,-274.96979188,0.00023734,2]
[383498103,1756959043782,-400.0,0.00023734,2]
[383498104,1756959043790,-400.0,0.00023734,2]
[383498105,1756959043799,-400.0,0.00023734,2]
[383498106,1756959043808,-400.0,0.00023734,2]
[383498107,1756959043818,-400.0,0.00023734,2]
[383498108,1756959043827,-400.0,0.00023734,2]
[383498109,1756959043837,-400.0,0.00023734,2]
[383498110,1756959043846,-225.35522207,0.00023734,2]
[383498111,1756959043857,-632.22,0.00023734,2]
[383498112,1756959043869,-332.73532852,0.00023734,2]
[383498113,1756959043879,-400.0,0.00023734,2]
[383498114,1756959043889,-400.0,0.00023734,2]
[383498115,1756959043898,-1520.76,0.00023734,2]
[383498116,1756959043907,-400.0,0.00023734,2]
[383498117,1756959043917,-400.0,0.00023734,2]
[383498118,1756959043927,-384.22672354,0.00023734,2]
[383498119,1756959043936,-445.81,0.00023734,2]
[383498120,1756959043946,-400.0,0.00023734,2]
[383498121,1756959043955,-400.0,0.00023734,2]
[383498122,1756959043964,-400.0,0.00023734,2]
[383498123,1756959043974,-5000.0,0.00023735,2]
[383498124,1756959043983,-400.0,0.00023835,2]
[383498125,1756959043992,-400.0,0.00023835,2]
[383498126,1756959044002,-400.0,0.00023835,2]
[383498127,1756959044012,-400.0,0.00023835,2]
[383498128,1756959044021,-400.0,0.00023835,2]
[383498129,1756959044032,-434.47,0.00023835,2]
[383498130,1756959044041,-400.0,0.00023835,2]
[383498131,1756959044050,-400.0,0.00023835,2]
[383498132,1756959044060,-465.47,0.00023835,2]
[383498133,1756959044070,-400.0,0.00023835,2]
[383498134,1756959044080,-400.0,0.00023835,2]
[383498135,1756959044090,-400.0,0.00023835,2]
[383498136,1756959044098,-400.0,0.00023835,2]
[383498137,1756959044106,-400.0,0.00023835,2]
[383498138,1756959044114,-456.5,0.00023835,2]
[383498139,1756959044122,-400.0,0.00023835,2]
[383498140,1756959044131,-400.0,0.00023835,2]
[383498141,1756959044141,-400.0,0.00023835,2]
[383498142,1756959044151,-400.0,0.00023835,2]
[383498143,1756959044159,-400.0,0.00023835,2]
[383498144,1756959044169,-2931.7,0.00023835,2]
[383498145,1756959044179,-2035.0,0.00023853,2]
[383498146,1756959044188,-3382.0,0.00023853,2]
[383498147,1756959044197,-1258.0,0.00023853,2]
[383498148,1756959044206,-924.0,0.00023853,2]
[383498149,1756959044215,-567.0,0.00023853,2]
[383498150,1756959044224,-1300.0,0.00023853,2]
[383498151,1756959044234,-600.0,0.00023853,2]
[383498152,1756959044243,-1577.0,0.00023853,2]
[383498153,1756959044252,-811.0,0.00023853,2]
[383498154,1756959044262,-1700.0,0.000239,8]
[383498155,1756959044271,-2000.0,0.00024,2]
[383498156,1756959044280,-160.0,0.00024,7]
[383498157,1756959044290,-400.0,0.00024008,2]
[383498158,1756959044299,-400.0,0.00024008,2]
[383498159,1756959044308,-422.05,0.00024008,2]
[383498160,1756959044317,-400.0,0.00024008,2]
[383498161,1756959044327,-400.0,0.00024008,2]
[383498162,1756959044336,-400.0,0.00024008,2]
[383498163,1756959044346,-400.0,0.00024008,2]
[383498164,1756959044355,-400.0,0.00024008,2]
[383498165,1756959044364,-400.0,0.00024008,2]
[383498166,1756959044373,-400.0,0.00024008,2]
[383498167,1756959044383,-400.0,0.00024008,2]
[383498168,1756959044392,-400.0,0.00024008,2]
[383498169,1756959044406,-400.0,0.00024008,2]
[383498170,1756959044415,-400.0,0.00024008,2]
[383498171,1756959044424,-411.47662404,0.00024008,2]
[383498172,1756959044435,-400.0,0.00024008,2]
[383498173,1756959044446,-632.22,0.00024008,2]
[383498174,1756959044455,-400.0,0.00024008,2]
[383498175,1756959044467,-400.0,0.00024008,2]
[383498176,1756959044476,-1520.76,0.00024008,2]
[383498177,1756959044485,-400.0,0.00024008,2]
[383498178,1756959044494,-400.0,0.00024008,2]
[383498179,1756959044503,-445.81,0.00024008,2]
[383498180,1756959044512,-400.0,0.00024008,2]
[383498181,1756959044522,-400.0,0.00024008,2]
[383498182,1756959044531,-488.1463561,0.00024008,2]
[383498183,1756959044540,-327.3491668,0.00024049,2]
[383498184,1756959044550,-3073.0,0.00024068,2]
[383498185,1756959044560,-400.0,0.00024109,2]
[383498186,1756959044569,-280.78996114,0.00024109,2]
[383498187,1756959044578,-400.0,0.00024109,2]
[383498188,1756959044587,-400.0,0.00024109,2]
[383498189,1756959044597,-400.0,0.00024109,2]
[383498190,1756959044606,-434.47,0.00024109,2]
[383498191,1756959044615,-400.0,0.00024109,2]
[383498192,1756959044625,-400.0,0.00024109,2]
[383498193,1756959044636,-465.47,0.00024109,2]
[383498194,1756959044645,-400.0,0.00024109,2]
[383498195,1756959044655,-400.0,0.00024109,2]
[383498196,1756959044665,-400.0,0.00024109,2]
[383498197,1756959044674,-400.0,0.00024109,2]
[383498198,1756959044685,-400.0,0.00024109,2]
[383498199,1756959044694,-456.5,0.00024109,2]
[383498200,1756959044704,-400.0,0.00024109,2]
[383498201,1756959044715,-400.0,0.00024109,2]
[383498202,1756959044724,-400.0,0.00024109,2]
[383498203,1756959044734,-400.0,0.00024109,2]
[383498204,1756959044746,-400.0,0.00024109,2]
[383498205,1756959044756,-2931.7,0.00024109,2]
[383498206,1756959044766,-250.61235854,0.00024137,2]
[383498207,1756959044777,-591.63,0.00024222,2]
[383498208,1756959044787,-169.55869136,0.00024282,2]
[383498209,1756959044796,-400.0,0.00024282,2]
[383498210,1756959044806,-422.05,0.00024282,2]
[383498211,1756959044816,-400.0,0.00024282,2]
[383498212,1756959044826,-400.0,0.00024282,2]
[383498213,1756959044835,-400.0,0.00024282,2]
[383498214,1756959044846,-400.0,0.00024282,2]
[383498215,1756959044856,-400.0,0.00024282,2]
[383498216,1756959044867,-400.0,0.00024282,2]
[383498217,1756959044877,-400.0,0.00024282,2]
[383498218,1756959044887,-410.29449863,0.00024282,2]
[383498219,1756959044897,-400.0,0.00024282,2]
[383498220,1756959044907,-400.0,0.00024282,2]
[383498221,1756959044916,-400.0,0.00024282,2]
[383498222,1756959044926,-632.22,0.00024282,2]
[383498223,1756959044936,-400.0,0.00024282,2]
[383498224,1756959044947,-400.0,0.00024282,2]
[383498225,1756959044956,-1520.76,0.00024282,2]
[383498226,1756959044966,-313.47333748,0.00024282,2]
[383498227,1756959044975,-400.0,0.00024282,2]
[383498228,1756959044984,-445.81,0.00024282,2]
[383498229,1756959044994,-400.0,0.00024282,2]
[383498230,1756959045004,-400.0,0.00024282,2]
[383498231,1756959045013,-400.0,0.00024383,2]
[383498232,1756959045023,-460.82177936,0.00024383,2]
[383498233,1756959045033,-400.0,0.00024383,2]
[383498234,1756959045043,-400.0,0.00024383,2]
[383498235,1756959045053,-434.47,0.00024383,2]
[383498236,1756959045062,-400.0,0.00024383,2]
[383498237,1756959045072,-400.0,0.00024383,2]
[383498238,1756959045082,-465.47,0.00024383,2]
[383498239,1756959045091,-427.7954377,0.00024383,2]
[383498240,1756959045102,-400.0,0.00024383,2]
[383498241,1756959045112,-400.0,0.00024383,2]
[383498242,1756959045121,-400.0,0.00024383,2]
[383498243,1756959045130,-400.0,0.00024383,2]
[383498244,1756959045139,-456.5,0.00024383,2]
[383498245,1756959045149,-400.0,0.00024383,2]